[Event "Late-Titled-Tuesday-Blitz-February-13-2024"]
[Site "Chess.com"]
[Date "2024.02.13"]
[Round "11"]
[White "FabianoCaruana"]
[Black "Durarbayli"]
[Result "1/2-1/2"]
[WhiteElo "3057"]
[BlackElo "2948"]
[TimeControl "180+1"]
[EndTime "16:06:27 PST"]
[Termination "Game drawn by repetition"]

1. c4 {[%clk 0:03:00.9]} 1... c6 {[%clk 0:02:57.8]} 2. Nc3 {[%clk 0:03:00.9]}
2... d5 {[%clk 0:02:58.7]} 3. d4 {[%clk 0:03:01]} 3... Nf6 {[%clk 0:02:58.8]} 4.
Nf3 {[%clk 0:03:00.7]} 4... e6 {[%clk 0:02:59.3]} 5. e3 {[%clk 0:03:00]} 5...
Nbd7 {[%clk 0:02:58.7]} 6. Qc2 {[%clk 0:02:59.6]} 6... Bd6 {[%clk 0:02:58.8]} 7.
Be2 {[%clk 0:02:59.8]} 7... dxc4 {[%clk 0:02:59]} 8. a4 {[%clk 0:02:56.5]} 8...
O-O {[%clk 0:02:55.3]} 9. Nd2 {[%clk 0:02:56.5]} 9... e5 {[%clk 0:02:53.6]} 10.
Nxc4 {[%clk 0:02:56.5]} 10... Bc7 {[%clk 0:02:54]} 11. a5 {[%clk 0:02:51.5]}
11... exd4 {[%clk 0:02:35.6]} 12. exd4 {[%clk 0:02:52.4]} 12... b5 {[%clk
0:02:36]} 13. axb6 {[%clk 0:02:51.6]} 13... Nxb6 {[%clk 0:02:36]} 14. Nxb6
{[%clk 0:02:35.5]} 14... Bxb6 {[%clk 0:02:33.8]} 15. O-O {[%clk 0:02:35.4]}
15... Bxd4 {[%clk 0:02:26]} 16. Bf3 {[%clk 0:02:35.6]} 16... Bg4 {[%clk
0:02:19.9]} 17. Bxc6 {[%clk 0:02:19.2]} 17... Rc8 {[%clk 0:02:19.6]} 18. Bb5
{[%clk 0:02:18.6]} 18... Rc5 {[%clk 0:01:57.7]} 19. Bd3 {[%clk 0:02:11.3]} 19...
Qc7 {[%clk 0:01:48.5]} 20. Be3 {[%clk 0:01:36.5]} 20... Rh5 {[%clk 0:01:47.9]}
21. g3 {[%clk 0:01:35.9]} 21... Bf3 {[%clk 0:01:01.4]} 22. Be2 {[%clk
0:00:47.4]} 22... Bxe2 {[%clk 0:00:15.1]} 23. Qxe2 {[%clk 0:00:48.3]} 23... Bxe3
{[%clk 0:00:11.7]} 24. Qxe3 {[%clk 0:00:49.2]} 24... Rxh2 {[%clk 0:00:07.7]} 25.
Qxa7 {[%clk 0:00:39.3]} 25... Qxa7 {[%clk 0:00:07.6]} 26. Rxa7 {[%clk
0:00:40.2]} 26... Rh5 {[%clk 0:00:07.9]} 27. b4 {[%clk 0:00:39.9]} 27... g6
{[%clk 0:00:06.7]} 28. b5 {[%clk 0:00:36.7]} 28... Rb8 {[%clk 0:00:07.1]} 29.
Rb1 {[%clk 0:00:36]} 29... Rc5 {[%clk 0:00:07.5]} 30. Ra3 {[%clk 0:00:33.6]}
30... Nd5 {[%clk 0:00:04.5]} 31. Nxd5 {[%clk 0:00:30.9]} 31... Rxd5 {[%clk
0:00:05.4]} 32. b6 {[%clk 0:00:31.2]} 32... Kg7 {[%clk 0:00:04.2]} 33. b7 {[%clk
0:00:30.2]} 33... Rd7 {[%clk 0:00:04.7]} 34. Rab3 {[%clk 0:00:29.4]} 34... Kf6
{[%clk 0:00:04.9]} 35. Kg2 {[%clk 0:00:28.1]} 35... h5 {[%clk 0:00:04.9]} 36.
Kf3 {[%clk 0:00:27]} 36... Ke6 {[%clk 0:00:05.3]} 37. Kf4 {[%clk 0:00:26.4]}
37... f6 {[%clk 0:00:03.4]} 38. Rb6+ {[%clk 0:00:26.2]} 38... Kf7 {[%clk
0:00:03.7]} 39. Kf3 {[%clk 0:00:24]} 39... Kg7 {[%clk 0:00:01.8]} 40. Ke3 {[%clk
0:00:22.9]} 40... Re8+ {[%clk 0:00:01.2]} 41. Kf4 {[%clk 0:00:21.2]} 41... Rb8
{[%clk 0:00:02.1]} 42. f3 {[%clk 0:00:19.3]} 42... Kf7 {[%clk 0:00:02.3]} 43.
Ke3 {[%clk 0:00:19.2]} 43... Re8+ {[%clk 0:00:01.9]} 44. Kf2 {[%clk 0:00:19.5]}
44... Rb8 {[%clk 0:00:02.8]} 45. g4 {[%clk 0:00:18.1]} 45... hxg4 {[%clk
0:00:02.5]} 46. fxg4 {[%clk 0:00:19]} 46... Kg7 {[%clk 0:00:03.1]} 47. Kg3
{[%clk 0:00:19.5]} 47... Kf7 {[%clk 0:00:03.7]} 48. Rf1 {[%clk 0:00:19.7]} 48...
Kg7 {[%clk 0:00:03.9]} 49. Rfxf6 {[%clk 0:00:19.6]} 49... Rbxb7 {[%clk
0:00:04.6]} 50. Rxg6+ {[%clk 0:00:20]} 50... Kh7 {[%clk 0:00:04.7]} 51. Rh6+
{[%clk 0:00:20.2]} 51... Kg7 {[%clk 0:00:04.6]} 52. Rbg6+ {[%clk 0:00:20.3]}
52... Kf7 {[%clk 0:00:05.3]} 53. Kh4 {[%clk 0:00:20.4]} 53... Rb5 {[%clk
0:00:05]} 54. Rf6+ {[%clk 0:00:17.1]} 54... Kg7 {[%clk 0:00:05.2]} 55. g5 {[%clk
0:00:17.2]} 55... Rf7 {[%clk 0:00:04.1]} 56. Rfg6+ {[%clk 0:00:16.2]} 56... Kf8
{[%clk 0:00:04.6]} 57. Kh5 {[%clk 0:00:14.3]} 57... Rf1 {[%clk 0:00:03.9]} 58.
Ra6 {[%clk 0:00:07.4]} 58... Rh1+ {[%clk 0:00:03.1]} 59. Kg6 {[%clk 0:00:07.8]}
59... Rg1 {[%clk 0:00:03.4]} 60. Rh8+ {[%clk 0:00:06.6]} 60... Ke7 {[%clk
0:00:04]} 61. Ra7+ {[%clk 0:00:06.9]} 61... Kd6 {[%clk 0:00:03.7]} 62. Rd8+
{[%clk 0:00:07.1]} 62... Kc6 {[%clk 0:00:03.9]} 63. Rc8+ {[%clk 0:00:07.1]}
63... Kd6 {[%clk 0:00:04.1]} 64. Rd8+ {[%clk 0:00:07.4]} 64... Kc6 {[%clk
0:00:04.4]} 65. Rc8+ {[%clk 0:00:07.1]} 65... Kd6 {[%clk 0:00:04.6]} 66. Kf6
{[%clk 0:00:07]} 66... Rf1+ {[%clk 0:00:03.9]} 67. Kg6 {[%clk 0:00:06.6]} 67...
Rg1 {[%clk 0:00:04.6]} 1/2-1/2

[Event "Late-Titled-Tuesday-Blitz-February-13-2024"]
[Site "Chess.com"]
[Date "2024.02.13"]
[Round "11"]
[White "azikom"]
[Black "Dinamo3"]
[Result "1-0"]
[WhiteElo "2689"]
[BlackElo "2528"]
[TimeControl "180+1"]
[EndTime "16:06:28 PST"]
[Termination "azikom won on time"]

1. d4 {[%clk 0:02:59.6]} 1... Nf6 {[%clk 0:02:59.5]} 2. c4 {[%clk 0:02:59.4]}
2... g6 {[%clk 0:02:58.8]} 3. Nc3 {[%clk 0:02:59.8]} 3... Bg7 {[%clk 0:02:59]}
4. e4 {[%clk 0:03:00.5]} 4... d6 {[%clk 0:02:59.7]} 5. Bg5 {[%clk 0:03:00.9]}
5... O-O {[%clk 0:02:56.8]} 6. Qd2 {[%clk 0:03:00.6]} 6... Nbd7 {[%clk
0:02:47.3]} 7. f3 {[%clk 0:03:00]} 7... e5 {[%clk 0:02:47.5]} 8. d5 {[%clk
0:02:57.6]} 8... a5 {[%clk 0:02:47.5]} 9. Nge2 {[%clk 0:02:56.4]} 9... Nc5
{[%clk 0:02:47.8]} 10. Ng3 {[%clk 0:02:53.9]} 10... c6 {[%clk 0:02:38.4]} 11.
Be2 {[%clk 0:02:54.2]} 11... cxd5 {[%clk 0:02:38.7]} 12. Nxd5 {[%clk 0:02:49.3]}
12... Be6 {[%clk 0:02:38.5]} 13. Nc3 {[%clk 0:02:47.6]} 13... Qb6 {[%clk
0:02:35]} 14. Be3 {[%clk 0:02:45.4]} 14... Nfd7 {[%clk 0:02:32]} 15. O-O {[%clk
0:02:42.2]} 15... f5 {[%clk 0:02:28.8]} 16. exf5 {[%clk 0:02:14.9]} 16... gxf5
{[%clk 0:02:28.4]} 17. Nh5 {[%clk 0:02:12.1]} 17... f4 {[%clk 0:01:55]} 18. Bf2
{[%clk 0:02:11.6]} 18... Nf6 {[%clk 0:01:55.3]} 19. Nxg7 {[%clk 0:02:09.9]}
19... Kxg7 {[%clk 0:01:56.2]} 20. Na4 {[%clk 0:01:59.7]} 20... Qc6 {[%clk
0:01:51.7]} 21. Nxc5 {[%clk 0:01:59.1]} 21... dxc5 {[%clk 0:01:52.6]} 22. Qc3
{[%clk 0:01:59.5]} 22... Qc7 {[%clk 0:01:44.4]} 23. Rfe1 {[%clk 0:01:59.3]}
23... Bf7 {[%clk 0:01:41.1]} 24. Bf1 {[%clk 0:01:53.2]} 24... Rfe8 {[%clk
0:01:41.5]} 25. Rad1 {[%clk 0:01:52]} 25... Re7 {[%clk 0:01:35.5]} 26. Bh4
{[%clk 0:01:49.3]} 26... Rae8 {[%clk 0:01:27]} 27. Rd2 {[%clk 0:01:48.3]} 27...
Re6 {[%clk 0:01:25.6]} 28. Bd3 {[%clk 0:01:36.3]} 28... Rd8 {[%clk 0:01:10.4]}
29. Rde2 {[%clk 0:01:26.9]} 29... Qd6 {[%clk 0:01:01]} 30. Bf5 {[%clk
0:01:25.2]} 30... Ree8 {[%clk 0:00:56.4]} 31. Rxe5 {[%clk 0:01:18.2]} 31... Rxe5
{[%clk 0:00:56.4]} 32. Rxe5 {[%clk 0:01:11]} 32... Qd1+ {[%clk 0:00:47.1]} 33.
Re1 {[%clk 0:01:05.5]} 33... Qd4+ {[%clk 0:00:47.1]} 34. Qxd4 {[%clk 0:01:05.1]}
34... cxd4 {[%clk 0:00:46]} 35. Bd3 {[%clk 0:00:39.5]} 35... b6 {[%clk
0:00:38.5]} 36. b3 {[%clk 0:00:39]} 36... Rd6 {[%clk 0:00:37]} 37. Re7 {[%clk
0:00:37.7]} 37... Nd7 {[%clk 0:00:35.7]} 38. Bg5 {[%clk 0:00:29.8]} 38... Nc5
{[%clk 0:00:33.1]} 39. Bxf4 {[%clk 0:00:29.5]} 39... Rf6 {[%clk 0:00:30.6]} 40.
Be5 {[%clk 0:00:21.7]} 40... Nxd3 {[%clk 0:00:31]} 41. Bxd4 {[%clk 0:00:21.6]}
41... Kg6 {[%clk 0:00:27.7]} 42. Bxf6 {[%clk 0:00:21.2]} 42... Kxf6 {[%clk
0:00:28.6]} 43. Rb7 {[%clk 0:00:21.6]} 43... Be8 {[%clk 0:00:07.6]} 44. Rxb6+
{[%clk 0:00:21.5]} 44... Ke5 {[%clk 0:00:08.1]} 45. Ra6 {[%clk 0:00:21.3]} 45...
a4 {[%clk 0:00:07.5]} 46. bxa4 {[%clk 0:00:20.5]} 46... Nb4 {[%clk 0:00:07]} 47.
Ra7 {[%clk 0:00:20.5]} 47... Bg6 {[%clk 0:00:06.8]} 48. a5 {[%clk 0:00:20.4]}
48... Kd6 {[%clk 0:00:07]} 49. Ra8 {[%clk 0:00:19.7]} 49... Kc6 {[%clk
0:00:07.2]} 50. h4 {[%clk 0:00:19.3]} 50... Bd3 {[%clk 0:00:04.7]} 51. Kh2
{[%clk 0:00:18.1]} 51... Kb7 {[%clk 0:00:05.1]} 52. Rh8 {[%clk 0:00:17.4]} 52...
Nxa2 {[%clk 0:00:05.1]} 53. h5 {[%clk 0:00:17]} 53... Nb4 {[%clk 0:00:04.3]} 54.
g4 {[%clk 0:00:17]} 54... Nc6 {[%clk 0:00:04.8]} 55. Kg3 {[%clk 0:00:16.8]}
55... Nxa5 {[%clk 0:00:05.1]} 56. c5 {[%clk 0:00:16.6]} 56... Kc6 {[%clk
0:00:05.3]} 57. f4 {[%clk 0:00:16.6]} 57... Kxc5 {[%clk 0:00:05.6]} 58. f5
{[%clk 0:00:16.9]} 58... Nc6 {[%clk 0:00:06.2]} 59. Rxh7 {[%clk 0:00:16.8]}
59... Kd6 {[%clk 0:00:05.8]} 60. h6 {[%clk 0:00:16]} 60... Ke5 {[%clk
0:00:04.7]} 61. Rg7 {[%clk 0:00:15.8]} 61... Nd4 {[%clk 0:00:03.6]} 62. h7
{[%clk 0:00:14.7]} 62... Bxf5 {[%clk 0:00:03.5]} 63. h8=Q {[%clk 0:00:14.5]}
63... Be4 {[%clk 0:00:03.4]} 64. Re7+ {[%clk 0:00:14.1]} 64... Kd5 {[%clk
0:00:03.9]} 65. Rd7+ {[%clk 0:00:13.6]} 1-0

[Event "Late-Titled-Tuesday-Blitz-February-13-2024"]
[Site "Chess.com"]
[Date "2024.02.13"]
[Round "11"]
[White "Fandorine"]
[Black "Jarrahi2452"]
[Result "1-0"]
[WhiteElo "2953"]
[BlackElo "2820"]
[TimeControl "180+1"]
[EndTime "16:06:29 PST"]
[Termination "Fandorine won by resignation"]

1. d4 {[%clk 0:03:00.9]} 1... d5 {[%clk 0:03:00]} 2. Nf3 {[%clk 0:02:59.2]} 2...
Nf6 {[%clk 0:02:57.4]} 3. Bg5 {[%clk 0:02:58.3]} 3... Ne4 {[%clk 0:02:56]} 4.
Bh4 {[%clk 0:02:57.1]} 4... h6 {[%clk 0:02:55.6]} 5. Nbd2 {[%clk 0:02:55.5]}
5... g5 {[%clk 0:02:53.2]} 6. Bg3 {[%clk 0:02:55.9]} 6... Bg7 {[%clk 0:02:53.6]}
7. e3 {[%clk 0:02:55.5]} 7... Nxg3 {[%clk 0:02:52.5]} 8. hxg3 {[%clk 0:02:55.3]}
8... c5 {[%clk 0:02:53]} 9. c3 {[%clk 0:02:55]} 9... Qb6 {[%clk 0:02:51.8]} 10.
Qb3 {[%clk 0:02:53]} 10... e6 {[%clk 0:02:45.3]} 11. g4 {[%clk 0:02:50.6]} 11...
Nc6 {[%clk 0:02:43.6]} 12. Be2 {[%clk 0:02:43.2]} 12... Bd7 {[%clk 0:02:35.2]}
13. Qc2 {[%clk 0:02:33.5]} 13... Rc8 {[%clk 0:02:32.7]} 14. Qb1 {[%clk
0:02:26.2]} 14... cxd4 {[%clk 0:02:29.5]} 15. exd4 {[%clk 0:02:24.1]} 15... Qc7
{[%clk 0:02:24.5]} 16. a3 {[%clk 0:02:13.7]} 16... e5 {[%clk 0:02:18.4]} 17.
Nxe5 {[%clk 0:02:07.9]} 17... Nxe5 {[%clk 0:02:18.2]} 18. dxe5 {[%clk
0:02:06.6]} 18... Qxe5 {[%clk 0:02:14.3]} 19. O-O {[%clk 0:01:26.5]} 19... h5
{[%clk 0:01:57.8]} 20. Re1 {[%clk 0:01:21.4]} 20... Kf8 {[%clk 0:01:40.9]} 21.
gxh5 {[%clk 0:01:16.7]} 21... Qf4 {[%clk 0:01:29.1]} 22. Nf1 {[%clk 0:01:13.5]}
22... g4 {[%clk 0:01:27.7]} 23. Ng3 {[%clk 0:01:05.4]} 23... d4 {[%clk
0:01:25.4]} 24. Qd3 {[%clk 0:00:55.5]} 24... Bc6 {[%clk 0:01:17.6]} 25. c4
{[%clk 0:00:47.1]} 25... Qg5 {[%clk 0:01:12.6]} 26. Rad1 {[%clk 0:00:41.9]}
26... Be5 {[%clk 0:01:04.4]} 27. Bxg4 {[%clk 0:00:37.4]} 27... Rd8 {[%clk
0:01:00]} 28. Qf5 {[%clk 0:00:31.6]} 28... Qxf5 {[%clk 0:00:58.9]} 29. Nxf5
{[%clk 0:00:32.5]} 29... Bf6 {[%clk 0:00:58.8]} 30. Rd3 {[%clk 0:00:21.2]} 30...
Bd7 {[%clk 0:00:50.1]} 31. Red1 {[%clk 0:00:15.4]} 31... Be6 {[%clk 0:00:47.9]}
32. b3 {[%clk 0:00:13.5]} 32... Kg8 {[%clk 0:00:44.5]} 33. f3 {[%clk 0:00:06.9]}
33... Bxf5 {[%clk 0:00:43]} 34. Bxf5 {[%clk 0:00:07.8]} 34... Rxh5 {[%clk
0:00:43.6]} 35. Be4 {[%clk 0:00:08.4]} 35... b5 {[%clk 0:00:38.4]} 36. g4 {[%clk
0:00:07.3]} 36... bxc4 {[%clk 0:00:36.6]} 37. bxc4 {[%clk 0:00:07.4]} 37... Ra5
{[%clk 0:00:35.4]} 38. f4 {[%clk 0:00:08]} 38... Bg7 {[%clk 0:00:32.5]} 39. g5
{[%clk 0:00:08.2]} 39... Rc8 {[%clk 0:00:32.3]} 40. Bd5 {[%clk 0:00:08.1]} 40...
Kf8 {[%clk 0:00:30.7]} 41. Kg2 {[%clk 0:00:08.7]} 41... Rb8 {[%clk 0:00:27.3]}
42. R1d2 {[%clk 0:00:09.4]} 42... Rb1 {[%clk 0:00:25.5]} 43. Kf3 {[%clk
0:00:09.6]} 43... Ra1 {[%clk 0:00:23.1]} 44. Kg4 {[%clk 0:00:09.4]} 44... R5xa3
{[%clk 0:00:22.1]} 45. Rxa3 {[%clk 0:00:06.3]} 45... Rxa3 {[%clk 0:00:23]} 46.
f5 {[%clk 0:00:06.5]} 46... Be5 {[%clk 0:00:22.9]} 47. f6 {[%clk 0:00:06.6]}
47... d3 {[%clk 0:00:18.5]} 48. Kf5 {[%clk 0:00:06.9]} 48... Bd6 {[%clk
0:00:17.6]} 49. Be4 {[%clk 0:00:04.4]} 49... Ra5+ {[%clk 0:00:16.4]} 50. Kg4
{[%clk 0:00:04.1]} 50... Re5 {[%clk 0:00:15.3]} 51. Bxd3 {[%clk 0:00:03.8]}
51... Bb4 {[%clk 0:00:15.5]} 52. Rd1 {[%clk 0:00:03.7]} 52... Re3 {[%clk
0:00:13.4]} 53. Bf5 {[%clk 0:00:03.1]} 53... Re1 {[%clk 0:00:10.1]} 54. Rd8+
{[%clk 0:00:02.9]} 54... Re8 {[%clk 0:00:09.8]} 55. Rd7 {[%clk 0:00:03.5]} 55...
Bc5 {[%clk 0:00:09.1]} 56. Rc7 {[%clk 0:00:03.6]} 56... Bd4 {[%clk 0:00:09.2]}
57. c5 {[%clk 0:00:03.5]} 57... Re5 {[%clk 0:00:08.2]} 58. Rc8+ {[%clk
0:00:03.6]} 58... Re8 {[%clk 0:00:08.8]} 59. Rc7 {[%clk 0:00:04.1]} 59... Re5
{[%clk 0:00:09]} 60. c6 {[%clk 0:00:04.6]} 60... Bb6 {[%clk 0:00:09.1]} 61. Rb7
{[%clk 0:00:04.9]} 61... Rc5 {[%clk 0:00:06.5]} 62. Rb8+ {[%clk 0:00:04.9]} 1-0

[Event "Late-Titled-Tuesday-Blitz-February-13-2024"]
[Site "Chess.com"]
[Date "2024.02.13"]
[Round "11"]
[White "Dewarfd"]
[Black "TheMagician"]
[Result "0-1"]
[WhiteElo "2151"]
[BlackElo "2225"]
[TimeControl "180+1"]
[EndTime "16:06:30 PST"]
[Termination "TheMagician won on time"]

1. d4 {[%clk 0:02:59.8]} 1... Nf6 {[%clk 0:02:54]} 2. e3 {[%clk 0:02:59.3]} 2...
d5 {[%clk 0:02:53.6]} 3. Nf3 {[%clk 0:02:59.3]} 3... c5 {[%clk 0:02:53]} 4. dxc5
{[%clk 0:02:59.1]} 4... Nc6 {[%clk 0:02:52.8]} 5. Bb5 {[%clk 0:02:57.5]} 5... g6
{[%clk 0:02:43.3]} 6. b4 {[%clk 0:02:55.9]} 6... Bg7 {[%clk 0:02:43]} 7. Bb2
{[%clk 0:02:55.9]} 7... O-O {[%clk 0:02:42.9]} 8. a3 {[%clk 0:02:52.5]} 8... a5
{[%clk 0:02:40.9]} 9. Bxc6 {[%clk 0:02:46.8]} 9... bxc6 {[%clk 0:02:40.8]} 10.
O-O {[%clk 0:02:33.5]} 10... Bf5 {[%clk 0:02:08.4]} 11. Nbd2 {[%clk 0:02:23.8]}
11... Qb8 {[%clk 0:02:06.7]} 12. c3 {[%clk 0:02:19.8]} 12... Bd3 {[%clk
0:02:02.2]} 13. Re1 {[%clk 0:02:19]} 13... Ne4 {[%clk 0:02:02.3]} 14. Nd4 {[%clk
0:02:15.3]} 14... Nxc5 {[%clk 0:01:53.3]} 15. Nxc6 {[%clk 0:02:05]} 15... Qb7
{[%clk 0:01:51.2]} 16. Nxe7+ {[%clk 0:01:24.5]} 16... Qxe7 {[%clk 0:01:50.1]}
17. bxc5 {[%clk 0:01:24.4]} 17... Rfb8 {[%clk 0:01:46.9]} 18. Nf3 {[%clk
0:01:01.8]} 18... Be4 {[%clk 0:01:40.8]} 19. Ra2 {[%clk 0:00:49.5]} 19... Bxf3
{[%clk 0:01:33]} 20. Qxf3 {[%clk 0:00:47.2]} 20... Qxc5 {[%clk 0:01:32.1]} 21.
Ba1 {[%clk 0:00:40.2]} 21... Qc4 {[%clk 0:01:23]} 22. Qe2 {[%clk 0:00:36.4]}
22... a4 {[%clk 0:01:18.6]} 23. Rd2 {[%clk 0:00:32.2]} 23... Rb3 {[%clk
0:01:12.5]} 24. Red1 {[%clk 0:00:25.5]} 24... Qxe2 {[%clk 0:01:11.4]} 25. Rxe2
{[%clk 0:00:25.3]} 25... Rxa3 {[%clk 0:01:06.9]} 26. Bb2 {[%clk 0:00:20]} 26...
Rb3 {[%clk 0:00:54.4]} 27. Rxd5 {[%clk 0:00:16.9]} 27... Rab8 {[%clk 0:00:41.3]}
28. Bc1 {[%clk 0:00:12]} 28... Rb1 {[%clk 0:00:41.3]} 29. Re1 {[%clk 0:00:12.1]}
29... Bxc3 {[%clk 0:00:40.2]} 30. Red1 {[%clk 0:00:12.6]} 30... Kg7 {[%clk
0:00:34.6]} 31. g3 {[%clk 0:00:12.2]} 31... Bb2 {[%clk 0:00:29.2]} 32. Bxb2+
{[%clk 0:00:11.4]} 32... R8xb2 {[%clk 0:00:28.5]} 33. Rxb1 {[%clk 0:00:10.5]}
33... Rxb1+ {[%clk 0:00:29]} 34. Kg2 {[%clk 0:00:11.4]} 34... a3 {[%clk
0:00:28.6]} 35. Ra5 {[%clk 0:00:11.5]} 35... Rb3 {[%clk 0:00:28.7]} 36. Kf3
{[%clk 0:00:11]} 36... h5 {[%clk 0:00:28.3]} 37. h3 {[%clk 0:00:10.9]} 37... f6
{[%clk 0:00:26.6]} 38. g4 {[%clk 0:00:11]} 38... h4 {[%clk 0:00:26.2]} 39. g5
{[%clk 0:00:08.5]} 39... fxg5 {[%clk 0:00:24.9]} 40. Kg4 {[%clk 0:00:07.7]}
40... Rb4+ {[%clk 0:00:20.6]} 41. Kf3 {[%clk 0:00:07.4]} 41... g4+ {[%clk
0:00:16.2]} 42. hxg4 {[%clk 0:00:07.5]} 42... Rb3 {[%clk 0:00:15.2]} 43. g5
{[%clk 0:00:07.4]} 43... h3 {[%clk 0:00:12.3]} 44. Kg3 {[%clk 0:00:07.2]} 44...
Rb2 {[%clk 0:00:10.8]} 45. Ra7+ {[%clk 0:00:07.1]} 45... Kg8 {[%clk 0:00:10.5]}
46. Kxh3 {[%clk 0:00:06.8]} 46... Rxf2 {[%clk 0:00:09.7]} 47. Rxa3 {[%clk
0:00:06.6]} 47... Rf1 {[%clk 0:00:04.6]} 48. Kg4 {[%clk 0:00:05.7]} 48... Rg1+
{[%clk 0:00:04.2]} 49. Kf4 {[%clk 0:00:05.7]} 49... Rf1+ {[%clk 0:00:04.5]} 50.
Ke4 {[%clk 0:00:05.3]} 50... Rf5 {[%clk 0:00:04.1]} 51. Ra7 {[%clk 0:00:02.9]}
51... Rxg5 {[%clk 0:00:03.6]} 52. Kf4 {[%clk 0:00:03.8]} 52... Rg1 {[%clk
0:00:03.4]} 53. e4 {[%clk 0:00:04]} 53... Kf8 {[%clk 0:00:03.5]} 54. Ke5 {[%clk
0:00:03.9]} 54... Rf1 {[%clk 0:00:01.1]} 55. Rb7 {[%clk 0:00:02.8]} 55... g5
{[%clk 0:00:01.1]} 0-1

[Event "Late-Titled-Tuesday-Blitz-February-13-2024"]
[Site "Chess.com"]
[Date "2024.02.13"]
[Round "11"]
[White "terrortoast"]
[Black "Yurovskykh_Oleksandr"]
[Result "1/2-1/2"]
[WhiteElo "2483"]
[BlackElo "2666"]
[TimeControl "180+1"]
[EndTime "16:06:37 PST"]
[Termination "Game drawn - insufficient material"]

1. d4 {[%clk 0:03:00.9]} 1... d5 {[%clk 0:02:54.7]} 2. c4 {[%clk 0:03:01]} 2...
dxc4 {[%clk 0:02:52.6]} 3. e4 {[%clk 0:03:00.8]} 3... Nf6 {[%clk 0:02:52.4]} 4.
e5 {[%clk 0:03:00.4]} 4... Nd5 {[%clk 0:02:52.7]} 5. Bxc4 {[%clk 0:03:00.1]}
5... Nb6 {[%clk 0:02:52.7]} 6. Bb3 {[%clk 0:02:58]} 6... Bf5 {[%clk 0:02:53]} 7.
Nc3 {[%clk 0:02:54.4]} 7... e6 {[%clk 0:02:52.8]} 8. Nge2 {[%clk 0:02:54]} 8...
Nc6 {[%clk 0:02:52.8]} 9. Be3 {[%clk 0:02:52.8]} 9... Qd7 {[%clk 0:02:51.5]} 10.
O-O {[%clk 0:02:49.8]} 10... O-O-O {[%clk 0:02:51.5]} 11. Rc1 {[%clk 0:02:43.3]}
11... Nb4 {[%clk 0:02:36.9]} 12. Na4 {[%clk 0:02:14]} 12... Nxa4 {[%clk
0:02:20.5]} 13. Bxa4 {[%clk 0:02:14.2]} 13... c6 {[%clk 0:02:18.3]} 14. a3
{[%clk 0:02:03.6]} 14... Nd5 {[%clk 0:02:16.1]} 15. b4 {[%clk 0:01:55.4]} 15...
Kb8 {[%clk 0:02:14.3]} 16. Bb3 {[%clk 0:01:29.5]} 16... f6 {[%clk 0:01:53.8]}
17. Ng3 {[%clk 0:01:19.8]} 17... Bg6 {[%clk 0:01:53]} 18. Bd2 {[%clk 0:01:01.2]}
18... fxe5 {[%clk 0:01:41.9]} 19. dxe5 {[%clk 0:01:01.4]} 19... h5 {[%clk
0:01:42.5]} 20. Qe2 {[%clk 0:00:55.3]} 20... h4 {[%clk 0:01:40]} 21. Ne4 {[%clk
0:00:55.5]} 21... h3 {[%clk 0:01:38.7]} 22. g3 {[%clk 0:00:52.4]} 22... Bh5
{[%clk 0:01:21]} 23. f3 {[%clk 0:00:43.3]} 23... Be7 {[%clk 0:01:09.3]} 24. Bg5
{[%clk 0:00:34.7]} 24... Bxg5 {[%clk 0:01:01.8]} 25. Nxg5 {[%clk 0:00:35.6]}
25... Bg6 {[%clk 0:01:02]} 26. Rfd1 {[%clk 0:00:22.2]} 26... Qe7 {[%clk
0:00:59.3]} 27. Ne4 {[%clk 0:00:17.3]} 27... Bxe4 {[%clk 0:00:58.8]} 28. Qxe4
{[%clk 0:00:18.2]} 28... Nc3 {[%clk 0:00:23.2]} 29. Rxd8+ {[%clk 0:00:15.5]}
29... Qxd8 {[%clk 0:00:24.1]} 30. Qe3 {[%clk 0:00:07.8]} 30... Nd5 {[%clk
0:00:14.7]} 31. Qd4 {[%clk 0:00:04.1]} 31... Rf8 {[%clk 0:00:13.5]} 32. Rf1
{[%clk 0:00:02.3]} 32... g5 {[%clk 0:00:13.2]} 33. b5 {[%clk 0:00:01.9]} 33...
Qb6 {[%clk 0:00:12.1]} 34. Qxb6 {[%clk 0:00:01.5]} 34... axb6 {[%clk 0:00:13]}
35. bxc6 {[%clk 0:00:01.8]} 35... bxc6 {[%clk 0:00:13.4]} 36. Bxd5 {[%clk
0:00:02]} 36... cxd5 {[%clk 0:00:12]} 37. f4 {[%clk 0:00:02]} 37... gxf4 {[%clk
0:00:12]} 38. Rxf4 {[%clk 0:00:02.9]} 38... Rc8 {[%clk 0:00:05.3]} 39. Rh4
{[%clk 0:00:02]} 39... Rc1+ {[%clk 0:00:05.8]} 40. Kf2 {[%clk 0:00:02.5]} 40...
Rc2+ {[%clk 0:00:06.4]} 41. Ke3 {[%clk 0:00:03]} 41... Rxh2 {[%clk 0:00:06.2]}
42. Rh6 {[%clk 0:00:03.4]} 42... Rh1 {[%clk 0:00:05.5]} 43. Kf2 {[%clk
0:00:02.2]} 43... h2 {[%clk 0:00:02.9]} 44. Kg2 {[%clk 0:00:02.4]} 44... Re1
{[%clk 0:00:03.3]} 45. Kxh2 {[%clk 0:00:01.9]} 45... Rxe5 {[%clk 0:00:03.7]} 46.
Rh7 {[%clk 0:00:01.9]} 46... d4 {[%clk 0:00:03.4]} 47. Kg2 {[%clk 0:00:02.1]}
47... d3 {[%clk 0:00:03.1]} 48. Rd7 {[%clk 0:00:02.2]} 48... Re3 {[%clk
0:00:02.3]} 49. Kf2 {[%clk 0:00:01.7]} 49... Re2+ {[%clk 0:00:02.9]} 50. Kf3
{[%clk 0:00:02.4]} 50... Re5 {[%clk 0:00:03.4]} 51. Rxd3 {[%clk 0:00:02.4]}
51... Rf5+ {[%clk 0:00:03.8]} 52. Ke4 {[%clk 0:00:02.8]} 52... Kc7 {[%clk
0:00:03.8]} 53. g4 {[%clk 0:00:03.5]} 53... Rg5 {[%clk 0:00:04.2]} 54. Kf4
{[%clk 0:00:04.1]} 54... Ra5 {[%clk 0:00:03.8]} 55. g5 {[%clk 0:00:05]} 55...
Ra4+ {[%clk 0:00:03.5]} 56. Ke5 {[%clk 0:00:05.4]} 56... Rg4 {[%clk 0:00:03.6]}
57. Kf6 {[%clk 0:00:05.8]} 57... e5 {[%clk 0:00:04.2]} 58. g6 {[%clk 0:00:05]}
58... e4 {[%clk 0:00:04.6]} 59. Rd1 {[%clk 0:00:04.7]} 59... Kc6 {[%clk
0:00:04.6]} 60. g7 {[%clk 0:00:05.2]} 60... Kc5 {[%clk 0:00:03.7]} 61. Rf1
{[%clk 0:00:04.6]} 61... e3 {[%clk 0:00:03.4]} 62. Kf7 {[%clk 0:00:04.6]} 62...
Kd4 {[%clk 0:00:02.9]} 63. g8=Q {[%clk 0:00:04.3]} 63... Rxg8 {[%clk 0:00:02.7]}
64. Kxg8 {[%clk 0:00:05]} 64... e2 {[%clk 0:00:02.3]} 65. Re1 {[%clk 0:00:05]}
65... Ke3 {[%clk 0:00:02.7]} 66. Kf7 {[%clk 0:00:05.6]} 66... Kd2 {[%clk
0:00:03]} 67. Rh1 {[%clk 0:00:05.3]} 67... e1=Q {[%clk 0:00:02.8]} 68. Rxe1
{[%clk 0:00:06]} 68... Kxe1 {[%clk 0:00:03.7]} 69. Ke6 {[%clk 0:00:06.7]} 69...
Kd2 {[%clk 0:00:04.4]} 70. Kd5 {[%clk 0:00:07.3]} 70... Kc3 {[%clk 0:00:04.5]}
71. Kc6 {[%clk 0:00:07.8]} 71... Kb3 {[%clk 0:00:04.8]} 72. Kxb6 {[%clk
0:00:08.3]} 72... Ka4 {[%clk 0:00:05.2]} 73. Kc5 {[%clk 0:00:03.9]} 73... Kxa3
{[%clk 0:00:06.1]} 1/2-1/2